[Event "30e Open International de Saint Affrique"]
[Site "Saint Affrique, France"]
[Date "2024.07.26"]
[Round "8.2"]
[White "Travadon, Loic"]
[Black "Gibaud, Elian"]
[Result "1-0"]
[TimeControl "1h30/40 + 30min + sec/mv"]
[WhiteTitle "IM"]
[WhiteElo "2458"]
[BlackElo "2061"]

1. e4 {[%clk 01:28:08]} {[%emt 00:02:52]} c5 {[%clk 01:30:41]} {[%emt
00:00:20]} 2. Nf3 {[%clk 01:28:29]} {[%emt 00:00:08]} e6 {[%clk 01:31:02]}
{[%emt 00:00:08]} 3. d4 {[%clk 01:28:53]} {[%emt 00:00:06]} cxd4 {[%clk
01:31:16]} {[%emt 00:00:16]} 4. Qxd4 {[%clk 01:29:19]} {[%emt 00:00:05]} Nc6
{[%clk 01:30:49]} {[%emt 00:00:56]} 5. Qe3 {[%clk 01:29:40]} {[%emt 00:00:08]}
a6 {[%clk 01:15:49]} {[%emt 00:15:30]} 6. Bd3 {[%clk 01:23:26]} {[%emt
00:06:44]} Nf6 {[%clk 01:03:08]} {[%emt 00:13:11]} 7. Nc3 {[%clk 01:19:12]}
{[%emt 00:04:44]} Qc7 {[%clk 01:00:41]} {[%emt 00:02:56]} 8. O-O {[%clk
01:16:11]} {[%emt 00:03:32]} Be7 {[%clk 00:57:13]} {[%emt 00:03:58]} 9. Qg5
{[%clk 01:12:12]} {[%emt 00:04:29]} g6 {[%clk 00:37:45]} {[%emt 00:19:58]} 10.
e5 {[%clk 01:07:35]} {[%emt 00:05:08]} h6 {[%clk 00:35:24]} {[%emt 00:02:50]}
11. Qf4 {[%clk 01:07:20]} {[%emt 00:00:45]} Nh5 {[%clk 00:34:08]} {[%emt
00:01:47]} 12. Qe3 {[%emt 00:06:44]} Ng7 {[%clk 00:32:56]} 13. Re1 {[%clk
01:02:07]} {[%emt 00:01:11]} b6 {[%clk 00:30:01]} {[%emt 00:03:25]} 14. Nd2
{[%clk 00:54:49]} {[%emt 00:07:49]} Bb7 {[%clk 00:28:49]} {[%emt 00:01:42]} 15.
Nc4 {[%clk 00:54:56]} {[%emt 00:00:23]} b5 {[%clk 00:25:29]} {[%emt 00:03:50]}
16. Nd6+ {[%clk 00:50:21]} {[%emt 00:05:05]} Bxd6 {[%clk 00:25:22]} {[%emt
00:00:36]} 17. exd6 {[%clk 00:50:49]} {[%emt 00:00:03]} Qxd6 {[%clk 00:25:22]}
{[%emt 00:00:30]} 18. Ne4 {[%clk 00:51:16]} {[%emt 00:00:02]} Qe7 {[%clk
00:22:36]} {[%emt 00:03:15]} 19. Qb6 {[%clk 00:51:33]} {[%emt 00:00:14]} Ra7
{[%clk 00:20:33]} {[%emt 00:02:33]} 20. Bf4 {[%clk 00:49:27]} {[%emt 00:02:37]}
d5 {[%clk 00:19:21]} {[%emt 00:01:42]} 21. Bd6 {[%clk 00:49:19]} {[%emt
00:00:37]} Qd8 {[%clk 00:18:34]} {[%emt 00:01:17]} 22. Bc7 {[%clk 00:49:47]}
{[%emt 00:00:02]} 1-0

[Event "30e Open International de Saint Affrique"]
[Site "Saint Affrique, France"]
[Date "2024.07.26"]
[Round "8.3"]
[White "Raggini, Lionel"]
[Black "Le Roux, Jean-Pierre"]
[Result "0-1"]
[TimeControl "1h30/40 + 30min + sec/mv"]
[BlackTitle "GM"]
[WhiteElo "1977"]
[BlackElo "2480"]

1. e4 {[%clk 01:30:52]} {[%emt 00:00:07]} g6 {[%clk 01:30:24]} {[%emt
00:00:37]} 2. d4 {[%clk 01:31:13]} {[%emt 00:00:08]} Bg7 {[%clk 01:30:50]}
{[%emt 00:00:05]} 3. Nc3 {[%clk 01:31:33]} {[%emt 00:00:10]} c6 {[%clk
01:31:16]} {[%emt 00:00:04]} 4. Be3 {[%clk 01:22:58]} {[%emt 00:09:05]} d5
{[%clk 01:29:27]} {[%emt 00:02:19]} 5. e5 {[%clk 01:20:37]} {[%emt 00:02:50]}
Qb6 {[%clk 01:16:55]} {[%emt 00:13:02]} 6. Rb1 {[%clk 01:17:19]} {[%emt
00:03:48]} Nh6 {[%clk 01:16:55]} {[%emt 00:00:29]} 7. Nf3 {[%clk 01:03:50]}
{[%emt 00:13:59]} Bg4 {[%clk 01:12:32]} {[%emt 00:04:53]} 8. Be2 {[%clk
01:01:55]} {[%emt 00:02:25]} e6 {[%clk 01:03:13]} {[%emt 00:09:49]} 9. Qd2
{[%clk 00:56:07]} {[%emt 00:06:18]} Nf5 {[%clk 00:58:18]} {[%emt 00:05:26]} 10.
Na4 {[%clk 00:55:36]} {[%emt 00:01:00]} Qc7 {[%clk 00:58:36]} {[%emt 00:00:12]}
11. Bf4 {[%clk 00:55:30]} {[%emt 00:00:36]} Nd7 {[%clk 00:54:02]} {[%emt
00:05:04]} 12. O-O {[%clk 00:53:27]} {[%emt 00:02:33]} O-O {[%clk 00:46:42]}
{[%emt 00:07:50]} 13. h3 {[%clk 00:53:00]} {[%emt 00:00:56]} Bxf3 {[%clk
00:47:09]} {[%emt 00:00:04]} 14. Bxf3 {[%clk 00:53:23]} {[%emt 00:00:07]} c5
{[%clk 00:42:42]} {[%emt 00:04:57]} 15. c3 {[%clk 00:44:04]} {[%emt 00:09:49]}
cxd4 {[%clk 00:41:19]} {[%emt 00:01:53]} 16. cxd4 {[%clk 00:36:56]} {[%emt
00:07:37]} Qc4 {[%clk 00:37:09]} {[%emt 00:04:40]} 17. Nc5 {[%clk 00:36:38]}
{[%emt 00:00:49]} Nxc5 {[%clk 00:36:40]} {[%emt 00:00:59]} 18. dxc5 {[%clk
00:35:29]} {[%emt 00:01:38]} Qxc5 {[%clk 00:36:00]} {[%emt 00:01:10]} 19. Rbc1
{[%clk 00:32:56]} {[%emt 00:03:03]} Qd4 {[%clk 00:33:21]} {[%emt 00:03:09]} 20.
Rc7 {[%clk 00:22:43]} {[%emt 00:10:43]} Qxd2 {[%clk 00:30:56]} {[%emt
00:02:55]} 21. Bxd2 {[%clk 00:23:07]} {[%emt 00:00:05]} Rab8 {[%clk 00:23:33]}
{[%emt 00:07:54]} 22. Bf4 {[%clk 00:19:09]} {[%emt 00:04:27]} Nd4 {[%clk
00:19:55]} {[%emt 00:04:08]} 23. Rfc1 {[%clk 00:18:02]} {[%emt 00:01:37]} Nc6
{[%clk 00:19:39]} {[%emt 00:00:46]} 24. Re1 {[%clk 00:14:02]} {[%emt 00:04:30]}
Rfc8 {[%clk 00:19:08]} {[%emt 00:01:02]} 25. Rxc8+ {[%clk 00:13:53]} {[%emt
00:00:39]} Rxc8 {[%clk 00:18:35]} {[%emt 00:01:03]} 26. Bd1 {[%clk 00:11:22]}
{[%emt 00:03:00]} Nb4 {[%clk 00:18:25]} {[%emt 00:00:40]} 27. Re2 {[%clk
00:09:28]} {[%emt 00:02:24]} Nd3 {[%clk 00:15:50]} {[%emt 00:03:04]} 28. g3
{[%clk 00:08:23]} {[%emt 00:01:35]} Nxf4 {[%clk 00:15:56]} {[%emt 00:00:25]} 29.
gxf4 {[%clk 00:08:48]} {[%emt 00:00:04]} Rc1 {[%clk 00:16:16]} {[%emt
00:00:10]} 30. Rd2 {[%clk 00:09:13]} {[%emt 00:00:05]} Bh6 {[%clk 00:16:38]}
{[%emt 00:00:07]} 31. Rd4 {[%clk 00:09:28]} {[%emt 00:00:15]} Bxf4 {[%clk
00:15:54]} {[%emt 00:01:14]} 32. Rxf4 {[%clk 00:09:53]} {[%emt 00:00:05]} Rxd1+
{[%clk 00:16:22]} {[%emt 00:00:02]} 33. Kg2 {[%clk 00:10:18]} {[%emt 00:00:05]}
Rc1 {[%clk 00:15:56]} {[%emt 00:00:55]} 34. Rb4 {[%clk 00:10:08]} {[%emt
00:00:41]} b6 {[%clk 00:15:59]} {[%emt 00:00:28]} 35. a4 {[%clk 00:09:21]}
{[%emt 00:01:17]} Rc5 {[%clk 00:15:02]} {[%emt 00:01:25]} 36. b3 {[%clk
00:07:54]} {[%emt 00:01:57]} Kg7 {[%clk 00:13:21]} {[%emt 00:02:11]} 37. Kf3
{[%clk 00:06:54]} {[%emt 00:01:30]} Rc3+ {[%clk 00:13:33]} {[%emt 00:00:19]} 38.
Kg2 {[%clk 00:05:21]} {[%emt 00:02:03]} g5 {[%clk 00:10:35]} {[%emt 00:03:28]}
39. a5 {[%clk 00:05:30]} {[%emt 00:00:22]} Rc6 {[%clk 00:09:35]} {[%emt
00:01:29]} 40. h4 {[%clk 00:04:24]} {[%emt 00:01:35]} h6 {[%clk 00:07:24]}
{[%emt 00:02:41]} 41. hxg5 {[%clk 00:03:56]} {[%emt 00:00:59]} hxg5 {[%clk
00:04:21]} {[%emt 00:03:33]} 42. Kf3 {[%clk 00:03:24]} {[%emt 00:01:02]} Kg6
{[%clk 00:04:07]} {[%emt 00:00:43]} 43. Kg4 {[%clk 00:03:04]} {[%emt 00:00:51]}
bxa5 {[%clk 00:02:28]} {[%emt 00:02:09]} 44. Rb8 {[%clk 00:27:59]} {[%emt
00:05:35]} Kg7 {[%clk 00:30:52]} {[%emt 00:02:06]} 45. Kxg5 {[%clk 00:27:11]}
{[%emt 00:01:17]} Rb6 {[%clk 00:31:17]} {[%emt 00:00:06]} 46. Ra8 {[%clk
00:27:22]} {[%emt 00:00:19]} Rxb3 {[%clk 00:31:34]} {[%emt 00:00:13]} 47. Rxa7
{[%clk 00:27:47]} {[%emt 00:00:06]} Rf3 {[%clk 00:31:49]} {[%emt 00:00:14]} 0-1

[Event "30e Open International de Saint Affrique"]
[Site "Saint Affrique, France"]
[Date "2024.07.26"]
[Round "8.4"]
[White "Buscara, Sevan"]
[Black "Delaplace, Thomas"]
[Result "1-0"]
[TimeControl "1h30/40 + 30min + sec/mv"]
[WhiteTitle "IM"]
[WhiteElo "2187"]
[BlackElo "1991"]

1. Nf3 {[%clk 01:29:52]} {[%emt 00:01:08]} f5 {[%clk 01:29:26]} {[%emt
00:01:35]} 2. d3 {[%clk 01:29:20]} {[%emt 00:01:01]} d6 {[%clk 01:29:31]}
{[%emt 00:00:26]} 3. e4 {[%clk 01:28:08]} {[%emt 00:01:42]} e5 {[%clk
01:29:01]} {[%emt 00:01:00]} 4. Nc3 {[%clk 01:26:23]} {[%emt 00:02:14]} Nf6
{[%clk 01:28:54]} {[%emt 00:00:37]} 5. g3 {[%clk 01:22:14]} {[%emt 00:04:40]}
Be7 {[%clk 01:26:11]} {[%emt 00:03:13]} 6. Nh4 {[%clk 01:19:00]} {[%emt
00:03:44]} d5 {[%clk 01:11:09]} {[%emt 00:15:33]} 7. exf5 {[%clk 01:12:45]}
{[%emt 00:06:44]} d4 {[%clk 01:11:15]} {[%emt 00:00:24]} 8. Ne4 {[%clk
01:12:07]} {[%emt 00:01:08]} O-O {[%clk 01:07:45]} {[%emt 00:04:01]} 9. Ng5
{[%clk 01:10:01]} {[%emt 00:02:35]} Bb4+ {[%clk 00:56:28]} {[%emt 00:11:47]} 10.
Bd2 {[%clk 01:07:18]} {[%emt 00:03:13]} Qe7 {[%clk 00:53:55]} {[%emt 00:03:03]}
11. Bg2 {[%clk 01:04:39]} {[%emt 00:03:09]} 1-0

[Event "30e Open International de Saint Affrique"]
[Site "Saint Affrique, France"]
[Date "2024.07.26"]
[Round "8.5"]
[White "Garde, Guillaume"]
[Black "Siva Kumar, Nirish"]
[Result "1/2-1/2"]
[TimeControl "1h30/40 + 30min + sec/mv"]
[WhiteElo "2082"]
[BlackElo "1954"]

1. e4 {[%clk 01:30:57]} {[%emt 00:00:02]} e5 {[%clk 01:30:49]} {[%emt
00:00:11]} 2. Nf3 {[%clk 01:31:21]} {[%emt 00:00:06]} Nc6 {[%clk 01:31:14]}
{[%emt 00:00:05]} 3. Bc4 {[%clk 01:31:43]} {[%emt 00:00:07]} Nf6 {[%clk
01:31:37]} {[%emt 00:00:06]} 4. d3 {[%emt 00:00:14]} h6 {[%clk 01:31:50]}
{[%emt 00:00:15]} 5. O-O {[%clk 01:31:34]} {[%emt 00:00:58]} d6 {[%clk
01:32:15]} {[%emt 00:00:05]} 6. c3 {[%clk 01:30:45]} {[%emt 00:01:19]} g5
{[%clk 01:32:38]} {[%emt 00:00:07]} 7. Nbd2 {[%clk 01:30:35]} {[%emt 00:00:40]}
Bg7 {[%clk 01:31:40]} {[%emt 00:01:28]} 8. Bb3 {[%clk 01:30:17]} {[%emt
00:00:48]} a5 {[%clk 01:31:59]} {[%emt 00:00:11]} 9. a4 {[%clk 01:28:26]}
{[%emt 00:02:21]} O-O {[%clk 01:31:32]} {[%emt 00:00:57]} 10. Nc4 {[%clk
01:28:27]} {[%emt 00:00:28]} d5 {[%clk 01:27:29]} {[%emt 00:04:32]} 11. Ncxe5
{[%clk 01:18:41]} {[%emt 00:10:17]} Nxe5 {[%clk 01:27:51]} {[%emt 00:00:08]} 12.
Nxe5 {[%clk 01:19:07]} {[%emt 00:00:04]} dxe4 {[%clk 01:28:15]} {[%emt
00:00:06]} 13. dxe4 {[%clk 01:02:49]} {[%emt 00:16:48]} Qxd1 {[%clk 01:28:16]}
{[%emt 00:00:29]} 14. Rxd1 {[%clk 01:02:43]} {[%emt 00:00:36]} Nxe4 {[%clk
01:28:14]} {[%emt 00:00:32]} 15. Nd3 {[%clk 00:59:49]} {[%emt 00:03:24]} Nd6
{[%clk 01:24:10]} {[%emt 00:04:34]} 16. Be3 {[%clk 00:47:34]} {[%emt 00:12:44]}
Re8 {[%clk 01:23:38]} {[%emt 00:01:02]} 17. Re1 {[%clk 00:43:31]} {[%emt
00:04:33]} Be6 {[%clk 01:18:38]} {[%emt 00:05:31]} 18. Bxe6 {[%clk 00:41:20]}
{[%emt 00:02:41]} Rxe6 {[%clk 01:18:53]} {[%emt 00:00:14]} 19. Rad1 {[%clk
00:39:57]} {[%emt 00:01:53]} b6 {[%clk 01:18:03]} {[%emt 00:01:21]} 20. Bc1
{[%clk 00:38:51]} {[%emt 00:01:36]} Rae8 {[%clk 01:17:39]} {[%emt 00:00:54]} 21.
Kf1 {[%clk 00:37:48]} {[%emt 00:01:33]} f5 {[%clk 01:17:29]} {[%emt 00:00:40]}
22. f3 {[%clk 00:28:24]} {[%emt 00:09:54]} Kf7 {[%clk 01:16:29]} {[%emt
00:01:30]} 23. Rxe6 {[%clk 00:26:46]} {[%emt 00:02:08]} Rxe6 {[%clk 01:16:54]}
{[%emt 00:00:06]} 24. Re1 {[%clk 00:26:53]} {[%emt 00:00:23]} c5 {[%clk
01:14:27]} {[%emt 00:02:57]} 25. Rxe6 {[%clk 00:24:54]} {[%emt 00:02:28]} Kxe6
{[%clk 01:13:34]} {[%emt 00:01:23]} 26. Ke2 {[%clk 00:21:00]} {[%emt 00:04:24]}
Kd5 {[%clk 01:12:28]} {[%emt 00:01:36]} 27. Be3 {[%clk 00:19:08]} {[%emt
00:02:22]} Bf6 {[%clk 01:05:27]} {[%emt 00:07:31]} 28. h4 {[%clk 00:15:51]}
{[%emt 00:03:47]} f4 {[%clk 01:05:21]} {[%emt 00:00:36]} 29. hxg5 {[%clk
00:13:22]} {[%emt 00:02:59]} hxg5 {[%clk 01:05:39]} {[%emt 00:00:12]} 30. Bd2
{[%clk 00:11:18]} {[%emt 00:02:34]} Nf5 {[%clk 01:05:26]} {[%emt 00:00:43]} 31.
Be1 {[%clk 00:04:24]} {[%emt 00:07:24]} Bd8 {[%clk 01:01:03]} {[%emt 00:04:53]}
32. Bf2 {[%clk 00:04:22]} {[%emt 00:00:32]} Kc4 {[%clk 01:00:44]} {[%emt
00:00:48]} 33. Nc1 {[%clk 00:04:11]} {[%emt 00:00:41]} Bc7 {[%clk 00:59:19]}
{[%emt 00:01:56]} 34. Kd2 {[%clk 00:03:48]} {[%emt 00:00:53]} Kd5 {[%clk
00:59:30]} {[%emt 00:00:18]} 35. Ne2 {[%clk 00:03:06]} {[%emt 00:01:12]} Nh6
{[%clk 00:44:00]} {[%emt 00:16:01]} 36. Kd3 {[%clk 00:00:54]} {[%emt 00:02:42]}
c4+ {[%clk 00:40:36]} {[%emt 00:03:54]} 37. Kd2 {[%clk 00:01:15]} {[%emt
00:00:09]} Nf7 {[%clk 00:40:44]} {[%emt 00:00:22]} 38. Bd4 {[%clk 00:00:38]}
{[%emt 00:01:08]} Bd8 {[%clk 00:39:07]} {[%emt 00:02:07]} 39. Ng1 {[%clk
00:00:39]} {[%emt 00:00:28]} Kc6 {[%clk 00:38:09]} {[%emt 00:01:29]} 40. Ne2
{[%clk 00:00:38]} {[%emt 00:00:31]} b5 {[%clk 00:37:57]} {[%emt 00:00:43]} 41.
axb5+ {[%clk 00:28:45]} {[%emt 00:02:23]} Kxb5 {[%clk 01:08:21]} {[%emt
00:00:05]} 42. Kc2 {[%clk 00:21:57]} {[%emt 00:07:19]} a4 {[%clk 01:07:53]}
{[%emt 00:00:58]} 43. Kd2 {[%clk 00:21:03]} {[%emt 00:01:24]} Be7 {[%clk
01:03:37]} {[%emt 00:04:46]} 44. Ng1 {[%clk 00:19:35]} {[%emt 00:01:57]} Nd6
{[%clk 01:03:29]} {[%emt 00:00:38]} 45. Ne2 {[%clk 00:19:14]} {[%emt 00:00:52]}
Nf5 {[%clk 01:03:51]} {[%emt 00:00:07]} 46. Bf2 {[%clk 00:17:18]} {[%emt
00:02:26]} Bd6 {[%clk 01:02:54]} {[%emt 00:01:27]} 47. Nd4+ {[%clk 00:17:02]}
{[%emt 00:00:46]} Nxd4 {[%clk 01:03:19]} {[%emt 00:00:06]} 48. Bxd4 {[%clk
00:17:26]} {[%emt 00:00:06]} Be7 {[%clk 01:03:44]} {[%emt 00:00:05]} 49. Ke2
{[%clk 00:17:06]} {[%emt 00:00:50]} Kc6 {[%clk 01:02:24]} {[%emt 00:01:50]} 50.
Kd2 {[%clk 00:17:02]} {[%emt 00:00:34]} Kd5 {[%clk 01:02:48]} {[%emt 00:00:07]}
51. Ke2 {[%clk 00:17:15]} {[%emt 00:00:17]} Ke6 {[%clk 01:03:02]} {[%emt
00:00:16]} 52. Kf2 {[%clk 00:16:41]} {[%emt 00:01:04]} Kf5 {[%clk 01:03:20]}
{[%emt 00:00:12]} 53. Ke2 {[%clk 00:16:11]} {[%emt 00:01:00]} Kg6 {[%clk
01:03:02]} {[%emt 00:00:48]} 54. Kf2 {[%clk 00:16:22]} {[%emt 00:00:19]} Kh5
{[%clk 01:03:00]} {[%emt 00:00:32]} 55. Kf1 {[%clk 00:15:58]} {[%emt 00:00:54]}
Bd6 {[%clk 01:03:21]} {[%emt 00:00:09]} 56. Ke2 {[%clk 00:15:55]} {[%emt
00:00:33]} Kg6 {[%clk 01:01:48]} {[%emt 00:02:03]} 57. Kf2 {[%clk 00:16:05]}
{[%emt 00:00:19]} Kf5 {[%clk 01:01:52]} {[%emt 00:00:27]} 58. Ke2 {[%clk
00:16:24]} {[%emt 00:00:10]} Be7 {[%clk 01:02:07]} {[%emt 00:00:14]} 59. Kf2
{[%clk 00:16:34]} {[%emt 00:00:20]} g4 {[%clk 01:01:57]} {[%emt 00:00:41]} 60.
Ke2 {[%clk 00:16:34]} {[%emt 00:00:30]} Kg5 {[%clk 01:00:14]} {[%emt 00:02:13]}
61. Kf1 {[%clk 00:16:31]} {[%emt 00:00:32]} Kf5 {[%clk 00:58:58]} {[%emt
00:01:46]} 62. Ke2 {[%clk 00:16:55]} {[%emt 00:00:06]} Bd6 {[%clk 00:58:29]}
{[%emt 00:01:00]} 63. Kf2 {[%clk 00:16:47]} {[%emt 00:00:38]} Kg5 {[%clk
00:57:28]} {[%emt 00:01:30]} 64. Kf1 {[%clk 00:17:01]} {[%emt 00:00:16]} Kh5
{[%clk 00:57:11]} {[%emt 00:00:48]} 65. Kg1 {[%clk 00:16:43]} {[%emt 00:00:48]}
Be7 {[%clk 00:56:55]} {[%emt 00:00:46]} 66. Kf1 {[%clk 00:17:02]} {[%emt
00:00:11]} Bh4 {[%clk 00:55:28]} {[%emt 00:01:57]} 67. Be5 {[%clk 00:16:16]}
{[%emt 00:01:15]} Bg5 {[%clk 00:54:57]} {[%emt 00:01:01]} 68. Bd4 {[%clk
00:16:35]} {[%emt 00:00:12]} gxf3 {[%clk 00:53:59]} {[%emt 00:01:29]} 69. gxf3
{[%clk 00:17:00]} {[%emt 00:00:05]} Bh4 {[%clk 00:54:21]} {[%emt 00:00:07]} 70.
Be5 {[%clk 00:14:55]} {[%emt 00:02:35]} Kg5 {[%clk 00:54:30]} {[%emt 00:00:21]}
71. Bd6 {[%clk 00:13:53]} {[%emt 00:01:31]} Kf5 {[%clk 00:54:54]} {[%emt
00:00:06]} 72. Bc5 {[%clk 00:12:54]} {[%emt 00:01:29]} Ke5 {[%clk 00:54:42]}
{[%emt 00:00:43]} 73. Ke2 {[%clk 00:13:07]} {[%emt 00:00:17]} Bd8 {[%clk
00:54:49]} {[%emt 00:00:23]} 74. Bb4 {[%clk 00:12:35]} {[%emt 00:01:02]} Bb6
{[%clk 00:54:44]} {[%emt 00:00:35]} 75. Be7 {[%clk 00:12:45]} {[%emt 00:00:20]}
Be3 {[%clk 00:55:04]} {[%emt 00:00:10]} 76. Ba3 {[%clk 00:12:40]} {[%emt
00:00:35]} Kf6 {[%clk 00:54:04]} {[%emt 00:01:30]} 77. Kf1 {[%clk 00:12:56]}
{[%emt 00:00:13]} Kg5 {[%clk 00:53:41]} {[%emt 00:00:53]} 78. Kg2 {[%clk
00:13:02]} {[%emt 00:00:25]} Bc1 {[%clk 00:54:03]} {[%emt 00:00:08]} 79. Kf2
{[%clk 00:13:07]} {[%emt 00:00:25]} Be3+ {[%clk 00:54:08]} {[%emt 00:00:24]} 80.
Kg2 {[%clk 00:13:19]} {[%emt 00:00:18]} Kf5 {[%clk 00:54:12]} {[%emt 00:00:26]}
81. Kf1 {[%clk 00:13:14]} {[%emt 00:00:35]} Ke6 {[%clk 00:52:43]} {[%emt
00:02:00]} 82. Ke2 {[%clk 00:13:18]} {[%emt 00:00:26]} Kd5 {[%clk 00:52:36]}
{[%emt 00:00:37]} 83. Kd1 {[%clk 00:13:26]} {[%emt 00:00:21]} Bb6 {[%clk
00:52:52]} {[%emt 00:00:14]} 84. Ke2 {[%clk 00:13:39]} {[%emt 00:00:17]} Bd8
{[%clk 00:50:55]} {[%emt 00:02:24]} 85. Kd2 {[%clk 00:13:52]} {[%emt 00:00:19]}
Ke6 {[%clk 00:50:19]} {[%emt 00:01:07]} 86. Ke2 {[%clk 00:13:41]} {[%emt
00:00:41]} Kf5 {[%clk 00:50:39]} {[%emt 00:00:10]} 87. Kf1 {[%clk 00:14:03]}
{[%emt 00:00:08]} Bb6 {[%clk 00:50:39]} {[%emt 00:00:29]} 88. Kg2 {[%clk
00:14:16]} {[%emt 00:00:17]} Be3 {[%clk 00:51:01]} {[%emt 00:00:08]} 89. Kf1
{[%clk 00:14:38]} {[%emt 00:00:08]} Bc1 {[%clk 00:51:27]} {[%emt 00:00:05]} 90.
Kg2 {[%clk 00:15:00]} {[%emt 00:00:09]} Bd2 {[%clk 00:51:46]} {[%emt 00:00:11]}
91. Kf1 {[%clk 00:15:22]} {[%emt 00:00:08]} Ke5 {[%clk 00:52:05]} {[%emt
00:00:11]} 92. Ke2 {[%clk 00:15:45]} {[%emt 00:00:07]} Be3 {[%clk 00:52:30]}
{[%emt 00:00:05]} 1/2-1/2

[ePGN "0.1;DGT LiveChess/2.2.6"]

[Event "30e Open International de Saint Affrique"]
[Site "Saint Affrique, France"]
[Date "2024.07.27"]
[Round "9.1"]
[White "Degraeve, Jean-Marc"]
[Black "Travadon, Loic"]
[Result "1/2-1/2"]
[TimeControl "1h30/40 + 30min + sec/mv"]
[WhiteTitle "GM"]
[BlackTitle "IM"]
[WhiteElo "2480"]
[BlackElo "2458"]

1. e4 {[%clk 01:30:57]} {[%emt 00:00:03]} e5 {[%clk 01:12:32]} {[%emt
00:18:28]} 2. Nf3 {[%clk 01:31:19]} {[%emt 00:00:08]} Nc6 {[%clk 01:12:57]}
{[%emt 00:00:05]} 3. Nc3 {[%clk 01:31:44]} {[%emt 00:00:06]} Nf6 {[%clk
01:13:20]} {[%emt 00:00:06]} 4. Bb5 {[%clk 01:32:07]} {[%emt 00:00:06]} Bb4
{[%clk 01:13:39]} {[%emt 00:00:11]} 5. O-O {[%clk 01:32:26]} {[%emt 00:00:11]}
Bxc3 {[%clk 01:14:01]} {[%emt 00:00:08]} 6. bxc3 {[%clk 01:32:43]} {[%emt
00:00:13]} O-O {[%clk 01:14:22]} {[%emt 00:00:08]} 7. d3 {[%clk 01:32:56]}
{[%emt 00:00:17]} d6 {[%clk 01:14:43]} {[%emt 00:00:08]} 8. Bxc6 {[%clk
01:33:17]} {[%emt 00:00:10]} bxc6 {[%clk 01:15:06]} {[%emt 00:00:07]} 9. Bg5
{[%clk 01:33:34]} {[%emt 00:00:13]} Bg4 {[%clk 01:15:25]} {[%emt 00:00:10]} 10.
h3 {[%clk 01:33:51]} {[%emt 00:00:13]} Be6 {[%clk 01:15:44]} {[%emt 00:00:11]}
11. c4 {[%clk 01:34:14]} {[%emt 00:00:08]} 1/2-1/2

[Event "30e Open International de Saint Affrique"]
[Site "Saint Affrique, France"]
[Date "2024.07.27"]
[Round "9.2"]
[White "Le Roux, Jean-Pierre"]
[Black "Buscara, Sevan"]
[Result "1-0"]
[TimeControl "1h30/40 + 30min + sec/mv"]
[WhiteTitle "GM"]
[BlackTitle "IM"]
[WhiteElo "2480"]
[BlackElo "2187"]

1. c4 {[%clk 01:28:30]} {[%emt 00:02:29]} c6 {[%clk 01:29:32]} {[%emt
00:01:28]} 2. e4 {[%clk 01:27:03]} {[%emt 00:01:57]} d5 {[%clk 01:29:41]}
{[%emt 00:00:21]} 3. exd5 {[%clk 01:27:21]} {[%emt 00:00:13]} cxd5 {[%clk
01:30:06]} {[%emt 00:00:05]} 4. d4 {[%clk 01:27:48]} {[%emt 00:00:03]} Nf6
{[%clk 01:30:14]} {[%emt 00:00:21]} 5. Nc3 {[%clk 01:28:04]} {[%emt 00:00:14]}
Nc6 {[%clk 01:30:34]} {[%emt 00:00:10]} 6. Bg5 {[%clk 01:25:52]} {[%emt
00:02:43]} Be6 {[%clk 01:29:30]} {[%emt 00:01:34]} 7. a3 {[%clk 01:21:53]}
{[%emt 00:04:29]} g6 {[%clk 01:19:33]} {[%emt 00:10:27]} 8. Be2 {[%clk
01:02:04]} {[%emt 00:20:19]} Bg7 {[%clk 01:05:21]} {[%emt 00:14:42]} 9. Bf3
{[%clk 00:59:14]} {[%emt 00:03:20]} Qb6 {[%clk 01:02:28]} {[%emt 00:03:23]} 10.
Bxf6 {[%clk 00:53:50]} {[%emt 00:05:55]} Bxf6 {[%clk 01:00:03]} {[%emt
00:02:54]} 11. cxd5 {[%clk 00:50:29]} {[%emt 00:03:51]} Nxd4 {[%clk 00:57:55]}
{[%emt 00:02:39]} 12. dxe6 {[%clk 00:12:41]} {[%emt 00:38:18]} Qxb2 {[%clk
00:55:09]} {[%emt 00:03:16]} 13. Rc1 {[%clk 00:01:32]} {[%emt 00:11:40]} Nxf3+
{[%clk 00:50:25]} {[%emt 00:05:14]} 14. gxf3 {[%clk 00:01:36]} {[%emt
00:00:26]} Bxc3+ {[%clk 00:49:41]} {[%emt 00:01:13]} 15. Kf1 {[%clk 00:02:04]}
{[%emt 00:00:02]} fxe6 {[%clk 00:41:51]} {[%emt 00:08:20]} 16. Ne2 {[%clk
00:01:14]} {[%emt 00:01:20]} Be5 {[%clk 00:40:13]} {[%emt 00:02:08]} 17. Qa4+
{[%clk 00:01:04]} {[%emt 00:00:40]} b5 {[%clk 00:37:42]} {[%emt 00:03:01]} 18.
Qe4 {[%clk 00:01:31]} {[%emt 00:00:03]} O-O {[%clk 00:35:45]} {[%emt 00:02:27]}
19. Kg2 {[%clk 00:00:40]} {[%emt 00:01:20]} Qxa3 {[%clk 00:34:28]} {[%emt
00:01:47]} 20. Rhd1 {[%clk 00:00:37]} {[%emt 00:00:34]} Bd6 {[%clk 00:26:22]}
{[%emt 00:08:37]} 21. Nd4 {[%clk 00:00:45]} {[%emt 00:00:21]} Qa2 {[%clk
00:22:55]} {[%emt 00:03:57]} 22. Nxe6 {[%clk 00:00:33]} {[%emt 00:00:42]} Rfc8
{[%clk 00:22:45]} {[%emt 00:00:40]} 23. Ng5 {[%clk 00:00:56]} {[%emt 00:00:07]}
Rf8 {[%clk 00:15:46]} {[%emt 00:07:29]} 24. Rxd6 {[%clk 00:01:00]} {[%emt
00:00:25]} exd6 {[%clk 00:15:18]} {[%emt 00:00:58]} 25. Rc7 {[%clk 00:01:13]}
{[%emt 00:00:17]} Rae8 {[%clk 00:13:45]} {[%emt 00:02:03]} 26. Qb7 {[%clk
00:01:15]} {[%emt 00:00:28]} 1-0